Cogmind - Beta 15 @@@ ROGUE MODE // 2025.09.04 @ 15:21:33 Player: potator Result: Self-destructed Performance ------------- Evolutions (2) 1000 Regions Visited (3) 600 Robots Destroyed (48) 240 Value Destroyed (1429) 1429 Prototype IDs (0) 0 Alien Tech Used (0) 0 Bonus (0) 0 TOTAL SCORE: 3269 Bonus ------- None Cogmind --------- Core Integrity 261/550 Matter 300/300 Energy 100/100 System Corruption 0% Temperature Cool (0) Movement Treading (152) Location -8/Materials Parts ------- > --- POWER (2) -------- (None) > --- PROPULSION (2) --- Light Treads Advanced Treads > --- UTILITY (5) ------ Medium Storage Unit Signal Interpreter Transport Network Coupler Shield Generator > --- WEAPON (2) ------- Beam Cannon Great Maul > --- INVENTORY (10) --- Light Treads Improved Heat Sink Improved Targeting Computer Recoil Stabilizer Heavy EM Shotgun Heavy EM Shotgun Small Laser Rocket Launcher Datajack Mace Peak State ------------ > --- POWER ------------ Improved Ion Engine > --- PROPULSION ------- Armored Treads Armored Treads > --- UTILITY ---------- Medium Storage Unit Structural Scanner Sensor Array Signal Interpreter Transport Network Coupler > --- WEAPON ----------- Heavy Assault Rifle Light Cannon > --- INVENTORY -------- Light Treads Improved Heat Sink Improved Targeting Computer Small Laser Assault Rifle Rocket Launcher Datajack [Rating: 17] Favorites ----------- Power Light Nuclear Core Engine Ion Engine Power Core Light Nuclear Core Propulsion Light Treads Treads Light Treads Utility Structural Scanner Device Structural Scanner Storage Small Storage Unit Processor Signal Interpreter Weapon Beam Cannon Energy Gun Small Laser Energy Cannon Beam Cannon Ballistic Gun Assault Rifle Ballistic Cannon Light Cannon Launcher Rocket Launcher Impact Weapon Great Maul Build | -11 -10 -9 -8 ------- Run | Yrd Mat Mat Mat Slots Evolved 4 | . . 2 2 Power 1 | . . . 1 Propulsion . | . . . . Utility 3 | . . 2 1 Weapon . | . . . . Parts Attached 28 | 6 3 8 11 Power 4 | 1 1 1 1 Engine 3 | 1 . 1 1 Core 1 | . 1 . . Reactor . | . . . . Propulsion 8 | 2 . 3 3 Treads 8 | 2 . 3 3 Leg . | . . . . Wheel . | . . . . Hover . | . . . . Flight . | . . . . Utility 7 | 1 1 3 2 Device 3 | . 1 1 1 Storage 2 | 1 . 1 . Processor 2 | . . 1 1 Hackware . | . . . . Protection . | . . . . Artifact . | . . . . Weapon 9 | 2 1 1 5 Energy Gun 1 | 1 . . . Energy Cannon 2 | . 1 . 1 Ballistic Gun 2 | 1 . . 1 Ballistic Cannon 1 | . . 1 . Launcher 1 | . . . 1 Special Weapon . | . . . . Impact Weapon 2 | . . . 2 Slashing Weapon . | . . . . Piercing Weapon . | . . . . Special Melee Weapon . | . . . . Unidentified Prototypes . | . . . . Parts Lost 12 | . 1 2 9 Power 4 | . 1 1 2 Propulsion 2 | . . . 2 Utility 2 | . . . 2 Weapon 4 | . . 1 3 Highest Loss Streak 6 | . 1 1 6 To Critical Strikes 1 | . . . 1 Average Backups 6 | . 4 7 6 Power . | . . . . Propulsion . | . . . . Utility 2 | . 3 3 2 Weapon 2 | . 1 2 2 Tool/Special . | . . . . Unused Backups 8 | . . 2 6 Power . | . . . . Propulsion . | . . . . Utility 5 | . . 2 3 Weapon 2 | . . . 2 Tool/Special 1 | . . . 1 Average Slot Usage (%) 91 | . 97 99 74 Engine 4 | . 8 1 4 Core 5 | . 5 9 . Treads 21 | . 28 22 13 Device 16 | . 11 22 14 Storage 11 | . 14 11 9 Processor 9 | . . 10 18 Energy Cannon 10 | . 13 10 5 Ballistic Gun 9 | . 14 9 3 Ballistic Cannon 1 | . . 1 2 Peak Build Rating 17 | 6 9 16 17 Average Rating 11 | 4 7 14 12 On Entrance 7 | . 6 9 15 Naked Turns . | . . . . Heaviest Build 25 | 13 16 25 25 Greatest Support 42 | 40 40 40 42 Greatest Overweight (x) 5 | . . . 5 Average Overweight (x) . | . . . . Largest Inventory Capacity 10 | 8 8 10 10 Average Capacity 8 | 6 8 8 10 Most Carried 10 | 3 7 8 10 Average Carried 6 | . 4 7 6 Final Capacity 10 | 8 8 10 10 Final Carried 10 | . 7 6 10 Class Distribution -------------------- 50% | Skirmisher 49% | Mutant Dominant Class ---------------- Mutant | -10/Materials Skirmisher | -9/Materials Mutant | -8/Materials Resources | -11 -10 -9 -8 ----------- Run | Yrd Mat Mat Mat Matter Collected 951 | 210 181 208 352 Remotely . | . . . . Salvage Created 1863 | . 635 641 587 Parts 104 | . 36 43 25 Haulers Intercepted 5 | . 2 . 3 Recyclers Shooed . | . . . . Parts Field Recycled . | . . . . Retrieved Matter . | . . . . Parts Self-Destructed . | . . . . Prevented . | . . . . Kills | -11 -10 -9 -8 ------- Run | Yrd Mat Mat Mat Combat Hostiles Destroyed 32 | . 10 12 10 Melee 1 | . . . 1 Guns 9 | . 3 1 5 Cannons 18 | . 6 11 1 AOE 2 | . . . 2 Classes Destroyed 10 | . 4 3 3 Worker 1 | . . 1 . Builder 1 | . 1 . . Hauler 5 | . 2 . 3 Recycler 1 | . . . 1 Operator 1 | . . 1 . Watcher 7 | . 3 3 1 Swarmer 2 | . . . 2 Grunt 23 | . 10 8 5 Sentry 6 | . . 4 2 Hunter 1 | . . . 1 Best Kill Streak 5 | . 4 3 5 Combat Bots Only 4 | . 2 3 4 Max Kills in Single Turn 2 | . 2 2 2 Gunslinging . | . . . . Exploded 1 | . . . 1 Melee 1 | . . . 1 Uniques/NPCs Destroyed . | . . . . Combat | -11 -10 -9 -8 -------- Run | Yrd Mat Mat Mat Hostile Shots Fired 228 | . 24 64 140 Missed 66 | . 11 21 34 Hits 162 | . 13 43 106 Projectile 162 | . 13 43 106 Critical Strikes 4 | . . 1 3 Damage Taken 2116 | . 212 580 1324 Core 389 | . 75 25 289 Absorbed by Shields 19 | . . . 19 Core Remaining (%) 87 | 100 70 93 . Volleys Fired 114 | . 37 39 38 Largest 2 | . 2 2 2 Hottest 93 | . 80 90 93 Shots Fired 218 | . 74 78 66 Gun 91 | . 37 33 21 Cannon 118 | . 37 45 36 Launcher 9 | . . . 9 Special . | . . . . Kinetic 117 | . 37 39 41 Thermal 92 | . 37 39 16 Explosive 9 | . . . 9 Electromagnetic . | . . . . Robot Hit Streak 10 | . 10 7 10 Robot Miss Streak 5 | . 5 3 3 Penetration Max . | . . . . Secondary Targets . | . . . . Shots Hit Robots 138 | . 48 44 46 Core Hits 72 | . 23 26 23 Critical Kills 3 | . 2 . 1 Critical Parts Destroyed 1 | . . . 1 Critical Strikes 5 | . 2 . 3 Meltdown 1 | . 1 . . Destroy 1 | . 1 . . Blast 1 | . . . 1 Smash 2 | . . . 2 Melee Attacks 16 | . . . 16 Impact 16 | . . . 16 Slashing . | . . . . Piercing . | . . . . Sneak Attacks 3 | . . . 3 Combat Hostiles . | . . . . Follow-up Attacks . | . . . . Damage Inflicted 2633 | . 758 718 1157 Guns 770 | . 285 250 235 Cannons 1306 | . 473 468 365 Explosions 201 | . . . 201 Melee 356 | . . . 356 Ramming . | . . . . Kinetic 1048 | . 285 302 461 Thermal 1028 | . 473 416 139 Explosive 201 | . . . 201 Electromagnetic . | . . . . Impact 356 | . . . 356 Slashing . | . . . . Piercing . | . . . . Highest Corruption . | . . . . Average Corruption . | . . . . Corruption Purged . | . . . . Corruption Blocked . | . . . . Overload Shots . | . . . . Overflow Damage 173 | . 7 . 166 Projectiles 7 | . 7 . . Explosions . | . . . . Melee 166 | . . . 166 Knockbacks 4 | . . 1 3 Impact . | . . . . Kinetic 4 | . . 1 3 Secondary . | . . . . Self-Inflicted Damage . | . . . . Shots . | . . . . Rammed . | . . . . Targets Rammed . | . . . . Kicked . | . . . . Crushed . | . . . . Highest Temperature 144 | . 144 112 117 Average Temperature 41 | . 44 42 29 Received Heat Transfer 840 | . 93 306 441 Siege Activations . | . . . . Martial Activations . | . . . . Shielding Activations . | . . . . Robots Disrupted . | . . . . Combat Hostiles . | . . . . Robots Corrupted 3 | . . . 3 Combat Hostiles 1 | . . . 1 Parts Fried 1 | . . . 1 Impact Corruptions 7 | . . . 7 Robots Melted 1 | . 1 . . Combat Hostiles 1 | . 1 . . Parts Melted 3 | . 1 2 . Heat Transferred 2183 | . 999 888 296 Parts Sabotaged . | . . . . Parts Stolen . | . . . . Parts Stripped . | . . . . Power Chain Reactions . | . . . . Alert | -11 -10 -9 -8 ------- Run | Yrd Mat Mat Mat Maximum Alert Level . | . . . . Low Security (%) 100 | 100 100 100 100 Level 1 . | . . . . Level 2 . | . . . . Level 3 . | . . . . Level 4 . | . . . . Level 5 . | . . . . High Security . | . . . . Max Security . | . . . . Peak Influence 142 | . 133 142 89 Initial 37 | . . . 37 Average 27 | . 30 24 28 Influence Increases 1089 | . 314 376 399 Destroy 0b10 Robot/C 640 | . 200 240 200 Destroy 0b10 Robot/NC 80 | . 30 25 25 Destroy Leader 194 | . 60 76 58 Successful Hack 65 | . 23 32 10 Disable Machine 15 | . . . 15 Destroy Structure 50 | . 1 3 46 Lose Combat Pursuer 45 | . . . 45 Influence Decreases 1043 | . 314 287 442 Entered New Map 52 | . . . 52 Time Decay 881 | . 304 267 310 Lost Part 110 | . 10 20 80 Squads Dispatched 6 | . 2 1 3 Investigation 1 | . . . 1 Extermination . | . . . . Reinforcement 5 | . 2 1 2 Assault . | . . . . Garrison . | . . . . Intercept . | . . . . Searches Triggered . | . . . . Construction Impeded . | . . . . Haulers Reinforced . | . . . . Active Scanning Responses . | . . . . Cargo Convoy Interrupts . | . . . . Stealth | -11 -10 -9 -8 --------- Run | Yrd Mat Mat Mat Distress Signals 2 | . . 1 1 Communications Jammed . | . . . . Distress Signals . | . . . . Times Spotted 58 | . 14 18 26 Peak Tracking Total 7 | . 3 5 7 Tactical Retreats 2 | . . . 2 Traps | -11 -10 -9 -8 ------- Run | Yrd Mat Mat Mat Traps Triggered 2 | . 1 . 1 Indirectly . | . . . . Trap Hack Attempts . | . . . . Triggered . | . . . . Disarmed 3 | . 3 . . Reprogrammed . | . . . . Reused . | . . . . Traps Extracted . | . . . . Installed . | . . . . Triggered . | . . . . Machines | -11 -10 -9 -8 ---------- Run | Yrd Mat Mat Mat Machines Disabled 1 | . . . 1 Max in Single Turn 1 | . . . 1 Machines Repaired . | . . . . Machines Dismantled . | . . . . Machines Sabotaged . | . . . . Overloaded Fab Kills . | . . . . Hacking | -11 -10 -9 -8 --------- Run | Yrd Mat Mat Mat Machines Accessed 12 | . 4 6 2 Terminals 12 | . 4 6 2 Fabricators . | . . . . Repair Stations . | . . . . Recycling Units . | . . . . Scanalyzers . | . . . . Garrison Access . | . . . . Total Hacks 25 | . 5 16 4 Successful 15 | . 5 8 2 Failed 10 | . . 8 2 Catastrophic 2 | . . 2 . Database Lockouts . | . . . . Manual . | . . . . Terminals 25 | . 5 16 4 Fabricators . | . . . . Repair Stations . | . . . . Recycling Units . | . . . . Scanalyzers . | . . . . Garrison Access . | . . . . Terminal Hacks 15 | . 5 8 2 Record 2 | . . 2 . Emergency Access Points 2 | . 1 1 . Locate Traps 2 | . 1 1 . Disarm Traps 1 | . 1 . . Surveillance Status 1 | . . 1 . Hauler Manifests 1 | . . . 1 Registered Components 1 | . . 1 . Zone Layout 5 | . 2 2 1 Fabricator Hacks . | . . . . Repair Station Hacks . | . . . . Recycling Unit Hacks . | . . . . Scanalyzer . | . . . . Garrison Access Hacks . | . . . . Unauthorized Hacks . | . . . . Terminals . | . . . . Fabricators . | . . . . Repair Stations . | . . . . Recycling Units . | . . . . Scanalyzers . | . . . . Garrison Access . | . . . . Data Cores Recovered 1 | . . 1 . Used . | . . . . Hacking Detections 6 | . 1 4 1 Full Trace Events 1 | . . 1 . Feedback Events . | . . . . Feedback Blocked . | . . . . Robot Schematics Acquired . | . . . . Robots Built . | . . . . Authchips . | . . . . Time . | . . . . Total Robot Build Rating . | . . . . Part Schematics Acquired . | . . . . Parts Built . | . . . . Authchips . | . . . . Time . | . . . . Total Part Build Rating . | . . . . Parts Repaired . | . . . . Time . | . . . . Parts Recycled . | . . . . Recycled Matter . | . . . . Retrieved Matter . | . . . . Retrieved Components . | . . . . Parts Scanalyzed . | . . . . Part Schematics Acquired . | . . . . Parts Damaged . | . . . . Bothacking | -11 -10 -9 -8 ------------ Run | Yrd Mat Mat Mat Used RIF Installer . | . . . . Robots Hacked . | . . . . Non-combat . | . . . . Combat . | . . . . Robot Hacks Applied . | . . . . Relay Couplers Released . | . . . . Fabnet Peak Effective % . | . . . . Robots Rewired . | . . . . Allies Hacked . | . . . . Hacks Repelled . | . . . . Allies | -11 -10 -9 -8 -------- Run | Yrd Mat Mat Mat Total Allies . | . . . . Largest Group . | . . . . Highest-Rated Group . | . . . . Highest-Rated Ally . | . . . . Total Orders . | . . . . Ally Attacks . | . . . . Total Damage . | . . . . Kills . | . . . . Allies Corrupted . | . . . . Allies Melted . | . . . . Intel | -11 -10 -9 -8 ------- Run | Yrd Mat Mat Mat Active Infowar (turns) 3663 | . 978 1605 1080 Sensors 2195 | . . 1605 590 Structural 3596 | . 978 1605 1013 T.N.C. 1080 | . . . 1080 Robot Analysis Total . | . . . . Derelict Logs Recovered . | . . . . Drone Launches . | . . . . Drone Recoveries . | . . . . Exploration | -11 -10 -9 -8 ------------- Run | Yrd Mat Mat Mat Turns Passed 3935 | 51 1199 1605 1080 Spaces Moved 1713 | 36 606 575 496 Core 23 | 16 . . 7 Treads 1690 | 20 606 575 489 Legs . | . . . . Wheels . | . . . . Hover . | . . . . Flight . | . . . . Fastest Speed 50 | 50 160 160 152 Average Speed 165 | 111 160 167 172 Slowest Speed 300 | 160 160 170 300 Overloaded Moves . | . . . . Propulsion Burnouts . | . . . . Robots Hopped . | . . . . Potential Cave-ins . | . . . . Cave-ins Triggered . | . . . . Exploration Rate (%) 45 | 4 96 48 34 Regions Visited 3 Branch Regions . Pre-discovered Areas . | . . . . Known Exits Taken 1 | . . 1 . Unknown Exits Taken 2 | 1 1 . . Scrap Searched . | . . . . Spaces Dug 1 | . . . 1 Terrain Destroyed 61 | . . . 61 Melee 1 | . . . 1 Projectile . | . . . . AOE 60 | . . . 60 Terrain Rammed . | . . . . Walls Destroyed . | . . . . Machines Disabled . | . . . . Actions | -11 -10 -9 -8 --------- Run | Yrd Mat Mat Mat Total 2567 | 47 761 1139 620 Wait 652 | . 107 502 43 Move 1710 | 35 605 574 496 Hop . | . . . . Pick Up 35 | 6 9 9 11 Fast Attach 1 | . . . 1 Attach 21 | 6 2 4 9 Detach 2 | . . . 2 Swap 10 | . 1 5 4 Drop 6 | . . 6 . Fire 114 | . 37 39 38 Melee 16 | . . . 16 Ram . | . . . . Kick . | . . . . Crush . | . . . . Escape Stasis . | . . . . Rewire . | . . . . Trap . | . . . . Miscellaneous . | . . . . Route ------- -11/Scrapyard -10/Materials (discovered 4 exits: *Mat x2 / [*Min] / [Sub]) -9/Materials (discovered 3 exits: *Mat x2 / [*Min]) -8/Materials (discovered 2 exits: [*Fac] / *Sto) History --------- Turn | Location | Event 9 | -11/Scrapyard | Discovered new exit (range 15) 52 | -11/Scrapyard | Entered Materials 313 | -10/Materials | Build established: Mutant 430 | -10/Materials | Discovered new exit (range 9) 665 | -10/Materials | Discovered new exit (range 16) 756 | -10/Materials | Discovered new exit (range 11) 1152 | -10/Materials | Discovered new exit (range 11) 1251 | -10/Materials | Entered another Materials area 1251 | -9/Materials | Evolved 2 slots: Utility x2 1456 | -9/Materials | Discovered new exit (range 12) 1508 | -9/Materials | Discovered new exit (range 15) 1556 | -9/Materials | Build established: Skirmisher 1680 | -9/Materials | Identified exit to Materials 2704 | -9/Materials | Discovered exit to Materials (range 11) 2856 | -9/Materials | Entered another Materials area 2856 | -8/Materials | Evolved 2 slots: Power x1, Utility x1 3242 | -8/Materials | Lost 6 parts (1p2n3w) 3388 | -8/Materials | Discovered new exit (range 15) 3498 | -8/Materials | Identified exit to Storage 3741 | -8/Materials | Build established: Mutant 3803 | -8/Materials | Discovered new exit (range 14) 3874 | -8/Materials | Core integrity fell below 50% 3936 | -8/Materials | Self-destructed Last Messages --------------- S-10 Pest destroyed. Destroyed Flight Unit. S-10 Pest system corrupted by crushing effect. S-10 Pest destroyed. K-01 Serf collects debris. Acquired 5 matter. K-01 Serf collects debris. T-07 Excavator is excavating. Connecting with Terminal... O-24 Administrator: "IFF HANDSHAKE FAILED. SECURING TERMINAL." K-01 Serf collects debris. T-07 Excavator is excavating. O-24 Administrator uses terminal to summon reinforcements. ALERT: Hostiles spotted, dispatching reinforcements to Terminal M011. O-24 Administrator locks terminal. K-01 Serf collects debris. T-07 Excavator is excavating. Map ----- +----------------------------------------------------+ | ???????????????????????????? | | ???????????????????????????? | | ???????????????????????????? | | ???????????????????????????? | | ???????????????????????????? | | ???????????????????????????? | | ???????????????????????????? | | ???????????????????????????? | | ???????????????????????????? | | ???????????????????????????? | | ???????????????????????????? | | ??????????##???????????????? | | ?????????? ???????????????? | | ?????????? #??????????????? | | ?????????? +??????????????? | | ?????????# #??????????????? | | ?????????# #??????????????? | | ?????????# #??????????????? | | ?????????# #??????????????? | | ?????????# ####???????????? | | ########## ????????????? | | # # ?????????????? | | # """ # #??????????????? | | #! """ # #?#######??????? | | # """ Y #?# #??????? | | # @ # ### #???????? | | ?######### ## ????? ##?? | | ???????## ## ####### #### | | ???????## T #####/#### | | ???????## "" =+%%= | | ???????## ### ###[""" | | ???????###+#####+### "T" = | | ???????? ?????## " " | | ??????[[! ! ???## ] | | ???? [!! """ ?## """ | | ???# [!! """ ### """ | | ???# """ ### """ | | ??# ### | | ??#######################+## | | ??????????## | | ??????????## | | ??????????## """ """ | | ??????????## """ """ | | ??????????## """[ """ | | ??????????## """%!""" | | ??????????## = = | | ??????????## | | ??????????## | | ??????????## | | ??????????## ####### | +----------------------------------------------------+ Best States ------------- Heat Dissipation 31 Energy Generation 18 Energy Capacity 265 Matter Stores 300 Matter Capacity 300 Sight Range 16 Robot Scan Range 14 Terrain Scan Density 10 Evasion (%) 50 Recoil Reduction 2 Item Schematics ----------------- None Robot Schematics ------------------ None Fabricated ------------ Nothing Repaired ---------- Nothing Alien Tech Used ----------------- None Achievements -------------- None Challenges ------------ None Game ------ Seed DecoderAdvancedShield Manual? 0 Play Time 00:25:17 Cumulative 19.5 hours Start 2025.08.08 @ 18:10:24 End 2025.09.04 @ 15:21:33 Sessions 2 Manual Loads 0 Difficulty Rogue Special Mode None Game No. 41 Rogue 41 Adventurer 0 Explorer 0 Win Type - Total 0 Types 0/0/0/0/0/0/0/0/0/0 Lore% 9 Gallery% 17 Achievement% 16 Wizard Run 0 Options --------- Layout 1 ASCII 0 Keyboard 0 Movement Mouse Keybinds 0 Fullscreen 2 Font 24/Smallcaps Map View 50x35 Zoom Use 0% Tactical HUD 0 Map Filters NONE Filters NONE Steam 1 RUN: 013486ea-8c03-4a53-a0c2-ab199e5d86ef